Cogmind - Beta 14 @@@ ROGUE MODE // 2025.03.05 @ 15:50:54 Player: Jason Result: Destroyed by S-10 Pest with Light Assault Rifle Performance ------------- Evolutions (0) 0 Regions Visited (2) 400 Robots Destroyed (10) 50 Value Destroyed (179) 179 Prototype IDs (0) 0 Alien Tech Used (0) 0 Bonus (0) 0 TOTAL SCORE: 629 Bonus ------- None Cogmind --------- Core Integrity 0/250 Matter 260/300 Energy 100/100 System Corruption 0% Temperature Cool (0) Movement Rolling (110) Location -10/Subcaves Parts ------- > --- POWER (1) -------- (None) > --- PROPULSION (2) --- Subdweller Monowheel > --- UTILITY (2) ------ Large Storage Unit > --- WEAPON (2) ------- (None) > --- INVENTORY (15) --- Ion Engine Ion Engine Light Treads Aluminum Leg Aluminum Leg Aluminum Leg High-capacity Matter Pod (0) Improved Terrain Scanner Peak State ------------ > --- POWER ------------ Light Nuclear Core > --- PROPULSION ------- Aluminum Leg Aluminum Leg > --- UTILITY ---------- Small Storage Unit Seismic Detector > --- WEAPON ----------- Medium Laser Light Assault Rifle > --- INVENTORY -------- Ion Engine Ion Engine Light Treads Light Treads Wheel Compact Wheel Improved Terrain Scanner Grenade Launcher [Rating: 10] Favorites ----------- Power Ion Engine Engine Ion Engine Power Core Light Nuclear Core Propulsion Aluminum Leg Leg Aluminum Leg Wheel Subdweller Monowheel Utility Seismic Detector Device Seismic Detector Storage Large Storage Unit Weapon Medium Laser Energy Gun Medium Laser Ballistic Gun Light Assault Rifle Launcher Grenade Launcher Build | -11 -10 -10 ------- Run | Yrd Mat Sub Slots Evolved . | . . . Power . | . . . Propulsion . | . . . Utility . | . . . Weapon . | . . . Parts Attached 20 | 8 5 7 Power 3 | 1 1 1 Engine 2 | 1 . 1 Core 1 | . 1 . Reactor . | . . . Propulsion 9 | 3 1 5 Treads . | . . . Leg 5 | 2 1 2 Wheel 4 | 1 . 3 Hover . | . . . Flight . | . . . Utility 3 | 2 1 . Device 1 | 1 . . Storage 2 | 1 1 . Processor . | . . . Hackware . | . . . Protection . | . . . Artifact . | . . . Weapon 5 | 2 2 1 Energy Gun 2 | 1 1 . Energy Cannon . | . . . Ballistic Gun 1 | 1 . . Ballistic Cannon . | . . . Launcher 2 | . 1 1 Special Weapon . | . . . Impact Weapon . | . . . Slashing Weapon . | . . . Piercing Weapon . | . . . Special Melee Weapon . | . . . Unidentified Prototypes . | . . . Parts Lost 9 | . . 9 Power 2 | . . 2 Propulsion 3 | . . 3 Utility 1 | . . 1 Weapon 3 | . . 3 Highest Loss Streak 2 | . . 2 To Critical Strikes 1 | . . 1 Average Slot Usage (%) 91 | . 100 80 Engine 5 | . 6 5 Core 7 | . 7 6 Leg 22 | . 28 16 Wheel 4 | . . 10 Device 12 | . 14 11 Storage 14 | . 14 14 Energy Gun 10 | . 12 6 Ballistic Gun 9 | . 14 3 Launcher 2 | . 1 4 Peak Build Rating 10 | 8 10 10 Average Rating 7 | 5 9 8 On Entrance 6 | . 8 10 Naked Turns . | . . . Heaviest Build 31 | 14 30 31 Greatest Support 36 | 20 20 36 Greatest Overweight (x) 3 | 2 1 3 Average Overweight (x) . | . . 1 Largest Inventory Capacity 15 | 8 15 15 Average Capacity 11 | 7 10 15 Most Carried 9 | 8 9 9 Average Carried 7 | 5 8 8 Final Capacity 15 | 8 15 15 Final Carried 9 | 8 9 8 Class Distribution -------------------- 90% | Mutant 9% | Scavenger-Mutant Dominant Class ---------------- Mutant | -10/Materials Mutant | -10/Subcaves Resources | -11 -10 -10 ----------- Run | Yrd Mat Sub Matter Collected 373 | 295 37 41 Remotely . | . . . Salvage Created 299 | 141 117 41 Parts 20 | 7 9 4 Haulers Intercepted . | . . . Recyclers Shooed . | . . . Parts Field Recycled . | . . . Retrieved Matter . | . . . Parts Self-Destructed 5 | . . 5 Prevented . | . . . Kills | -11 -10 -10 ------- Run | Yrd Mat Sub Combat Hostiles Destroyed 6 | . 5 1 Guns 2 | . 2 . AOE 4 | . 3 1 Classes Destroyed 5 | 3 2 . Worker 1 | 1 . . Tunneler 2 | 2 . . Recycler 1 | 1 . . Swarmer 3 | . 3 . Grunt 3 | . 2 1 Best Kill Streak 3 | 2 3 1 Combat Bots Only 3 | . 3 1 Max Kills in Single Turn 2 | 1 2 1 Gunslinging . | . . . Exploded 2 | . 2 1 Melee . | . . . Uniques/NPCs Destroyed . | . . . Combat | -11 -10 -10 -------- Run | Yrd Mat Sub Hostile Shots Fired 99 | . 21 78 Missed 39 | . 5 34 Damage Taken 1023 | . 202 821 Core 253 | . 19 234 Absorbed by Shields . | . . . Core Remaining (%) 100 | 100 . . Volleys Fired 35 | 15 11 9 Largest 2 | 2 2 2 Hottest 70 | 70 70 70 Shots Fired 63 | 30 20 13 Gun 60 | 30 18 12 Cannon . | . . . Launcher 3 | . 2 1 Special . | . . . Kinetic 28 | 15 9 4 Thermal 32 | 15 9 8 Explosive 3 | . 2 1 Electromagnetic . | . . . Robot Hit Streak 13 | 9 6 13 Robot Miss Streak 3 | 3 3 . Penetration Max . | . . . Secondary Targets . | . . . Shots Hit Robots 48 | 23 12 13 Core Hits 25 | 8 12 5 Critical Kills . | . . . Critical Parts Destroyed . | . . . Critical Strikes 2 | 1 . 1 Burn 2 | 1 . 1 Melee Attacks . | . . . Impact . | . . . Slashing . | . . . Piercing . | . . . Sneak Attacks . | . . . Combat Hostiles . | . . . Follow-up Attacks . | . . . Damage Inflicted 660 | 230 262 168 Guns 487 | 230 124 133 Cannons . | . . . Explosions 173 | . 138 35 Melee . | . . . Ramming . | . . . Kinetic 173 | 92 49 32 Thermal 314 | 138 75 101 Explosive 173 | . 138 35 Electromagnetic . | . . . Impact . | . . . Slashing . | . . . Piercing . | . . . Highest Corruption . | . . . Average Corruption . | . . . Corruption Purged . | . . . Corruption Blocked . | . . . Overload Shots . | . . . Overflow Damage 18 | . 18 . Projectiles . | . . . Explosions 18 | . 18 . Melee . | . . . Knockbacks . | . . . Impact . | . . . Kinetic . | . . . Secondary . | . . . Self-Inflicted Damage 46 | . 21 25 Shots 2 | . 1 1 Rammed . | . . . Targets Rammed . | . . . Kicked . | . . . Crushed . | . . . Highest Temperature 225 | 170 225 9 Average Temperature 78 | 64 107 5 Received Heat Transfer 264 | . 75 189 Siege Activations . | . . . Robots Corrupted . | . . . Combat Hostiles . | . . . Parts Fried . | . . . Impact Corruptions . | . . . Robots Melted . | . . . Combat Hostiles . | . . . Parts Melted 1 | . 1 . Heat Transferred 1073 | 481 222 370 Parts Sabotaged . | . . . Parts Stolen . | . . . Parts Stripped . | . . . Power Chain Reactions . | . . . Alert | -11 -10 -10 ------- Run | Yrd Mat Sub Peak Influence 170 | 20 170 . Initial 13 | . 13 . Average 61 | 8 96 . Maximum Alert Level . | . . . Low Security (%) 100 | 100 100 . Level 1 . | . . . Level 2 . | . . . Level 3 . | . . . Level 4 . | . . . Level 5 . | . . . High Security . | . . . Max Security . | . . . Squads Dispatched . | . . . Investigation . | . . . Extermination . | . . . Reinforcement . | . . . Assault . | . . . Garrison . | . . . Intercept . | . . . Searches Triggered . | . . . Construction Impeded . | . . . Haulers Reinforced . | . . . Active Scanning Responses . | . . . Cargo Convoy Interrupts . | . . . Stealth | -11 -10 -10 --------- Run | Yrd Mat Sub Distress Signals 1 | . 1 . Communications Jammed . | . . . Distress Signals . | . . . Times Spotted 23 | . 11 12 Peak Tracking Total 7 | . 4 7 Tactical Retreats 2 | . 1 1 Traps | -11 -10 -10 ------- Run | Yrd Mat Sub Traps Triggered . | . . . Indirectly . | . . . Trap Hack Attempts . | . . . Triggered . | . . . Disarmed . | . . . Reprogrammed . | . . . Reused . | . . . Traps Extracted . | . . . Installed . | . . . Triggered . | . . . Machines | -11 -10 -10 ---------- Run | Yrd Mat Sub Machines Disabled . | . . . Max in Single Turn . | . . . Machines Repaired . | . . . Machines Dismantled . | . . . Machines Sabotaged . | . . . Overloaded Fab Kills . | . . . Hacking | -11 -10 -10 --------- Run | Yrd Mat Sub Machines Accessed . | . . . Terminals . | . . . Fabricators . | . . . Repair Stations . | . . . Recycling Units . | . . . Scanalyzers . | . . . Garrison Access . | . . . Total Hacks . | . . . Successful . | . . . Failed . | . . . Catastrophic . | . . . Database Lockouts . | . . . Manual . | . . . Terminals . | . . . Fabricators . | . . . Repair Stations . | . . . Recycling Units . | . . . Scanalyzers . | . . . Garrison Access . | . . . Terminal Hacks . | . . . Fabricator Hacks . | . . . Repair Station Hacks . | . . . Recycling Unit Hacks . | . . . Scanalyzer . | . . . Garrison Access Hacks . | . . . Unauthorized Hacks . | . . . Terminals . | . . . Fabricators . | . . . Repair Stations . | . . . Recycling Units . | . . . Scanalyzers . | . . . Garrison Access . | . . . Data Cores Recovered . | . . . Used . | . . . Hacking Detections . | . . . Full Trace Events . | . . . Feedback Events . | . . . Feedback Blocked . | . . . Robot Schematics Acquired . | . . . Robots Built . | . . . Authchips . | . . . Time . | . . . Total Robot Build Rating . | . . . Part Schematics Acquired . | . . . Parts Built . | . . . Authchips . | . . . Time . | . . . Total Part Build Rating . | . . . Parts Repaired . | . . . Time . | . . . Parts Recycled . | . . . Recycled Matter . | . . . Retrieved Matter . | . . . Retrieved Components . | . . . Parts Scanalyzed . | . . . Part Schematics Acquired . | . . . Parts Damaged . | . . . Bothacking | -11 -10 -10 ------------ Run | Yrd Mat Sub Used RIF Installer . | . . . Robots Hacked . | . . . Non-combat . | . . . Combat . | . . . Robot Hacks Applied . | . . . Relay Couplers Released . | . . . Fabnet Peak Effective % . | . . . Robots Rewired . | . . . Allies Hacked . | . . . Hacks Repelled . | . . . Allies | -11 -10 -10 -------- Run | Yrd Mat Sub Total Allies . | . . . Largest Group . | . . . Highest-Rated Group . | . . . Highest-Rated Ally . | . . . Total Orders . | . . . Ally Attacks . | . . . Total Damage . | . . . Kills . | . . . Allies Corrupted . | . . . Allies Melted . | . . . Intel | -11 -10 -10 ------- Run | Yrd Mat Sub Robot Analysis Total . | . . . Derelict Logs Recovered . | . . . Drone Launches . | . . . Drone Recoveries . | . . . Exploration | -11 -10 -10 ------------- Run | Yrd Mat Sub Turns Passed 823 | 216 336 271 Spaces Moved 497 | 137 184 176 Core 18 | 18 . . Treads . | . . . Legs 333 | 104 184 45 Wheels 146 | 15 . 131 Hover . | . . . Flight . | . . . Fastest Speed 50 | 50 120 105 Average Speed 131 | 111 143 133 Slowest Speed 190 | 150 190 190 Overloaded Moves . | . . . Propulsion Burnouts . | . . . Robots Hopped . | . . . Cave-ins Triggered . | . . . Exploration Rate (%) 13 | 6 23 12 Regions Visited 2 Branch Regions 1 Pre-discovered Areas . | . . . Known Exits Taken . | . . . Unknown Exits Taken 2 | 1 1 . Scrap Searched . | . . . Spaces Dug . | . . . Terrain Destroyed 9 | . 5 4 Melee . | . . . Projectile . | . . . AOE 9 | . 5 4 Terrain Rammed . | . . . Walls Destroyed . | . . . Machines Disabled . | . . . Actions | -11 -10 -10 --------- Run | Yrd Mat Sub Total 608 | 169 239 200 Wait 39 | 2 32 5 Move 495 | 136 183 176 Hop . | . . . Pick Up 10 | 7 3 . Fast Attach 11 | 8 . 3 Attach 3 | . . 3 Detach 3 | 1 . 2 Swap 6 | . 5 1 Drop 6 | . 5 1 Fire 35 | 15 11 9 Melee . | . . . Ram . | . . . Kick . | . . . Crush . | . . . Escape Stasis . | . . . Rewire . | . . . Trap . | . . . Miscellaneous . | . . . Route ------- -11/Scrapyard -10/Materials -10/Subcaves (discovered 2 exits: [*Mat] / [*Rec]) History --------- Turn | Location | Event 10 | -11/Scrapyard | Discovered new exit (range 16) 217 | -11/Scrapyard | Entered Materials 308 | -10/Materials | Build established: Mutant 540 | -10/Materials | Discovered new exit (range 8) 553 | -10/Materials | Entered Subcaves 721 | -10/Subcaves | Core integrity fell below 50% 789 | -10/Subcaves | Discovered new exit (range 8) 817 | -10/Subcaves | Discovered new exit (range 11) 820 | -10/Subcaves | Core integrity fell below 20% 824 | -10/Subcaves | Destroyed by S-10 Pest with Light Assault Rifle Last Messages --------------- 00688_ Acquired 41 matter. 00689_ Lgt. Nuclear Core fries itself beyond repair. 00695_ Imp. Heat Sink fries itself beyond repair. 00695_ Subatomizers dissect the Sub. Monowheel. 00714_ Acquired Sub. Power Source. 00715_ Subatomizers dissect the Sub. Laser. 00718_ Dropped Wheel. 00719_ Acquired Sub. Monowheel. 00725_ Subatomizers dissect the Sub. Laser. 00730_ Grenade Launcher destroyed. 00776_ Aluminum Leg destroyed. 00778_ Seismic Detector destroyed. 00789_ EXIT=FOUND 00817_ S-10 Pest springs to life. 00817_ EXIT=FOUND 00817_ S-10 Pest springs to life. 00817_ S-10 Pest destroyed. 00817_ Sub. Power Source destroyed. 00819_ Com. Wheel destroyed. 00819_ S-10 Pest destroyed. Map ----- +----------------------------------------------------+ | # # #????????????????????????? | | ############# ###### ##????????????????????????? | | ????????????#####?????##?????????????????????????? | | ?????????????????????????????????????????????????? | | ?????????????????????????????????????????????????? | | ?????????????????????????????????????????????????? | | ?????????????????????????????????????????????????? | | ?????????????????????????????????????????????????? | | ?????????????????????????????????????????????????? | | ?????????????????????????????????????????????????? | | ?????????????????????????????????????????????????? | | ?????????????????????????????????????????????????? | | ?????????????????????????????????????????????????? | | ?????????????????????????????????????????????????? | | ???????????????????###???????????????????????????? | | ####???????????#####<#####???????????????????????? | | #???????????#"""" """"#???????????????????????? | | ## #???????????#" " " "#???????????????????????? | | ?# ##??????????#" "#???????????????????????? | | ?# ###????????# #???????????????????????? | | ?# ##???????# #???????????????????????? | | ## #########? s ??????????? #????????????? | | # # # # #??#%=%######???? ?????????????? | | #### s ### """ ?????????????? | | R """#?????????????? | | < ## #### @ "#?????????????? | | #####??### #?????????????? | | #??????# ## ""???????????? | | ?????## ### ## #????????????????? | | ### #????## #?# ##?### "#???????????????? | | ??# #?????# #?# #??????" #???????????????? | | ??# ????# ##?## #???????" ??????????????? | | ?? ???####???# #???????? ????????????? | | ?? ?????????## #?????????? "????????????? | | ?? ??????????####????????????????????????? | | ??## ### ???????????????????????????????????????? | | ????###??????????????????????????????????????????? | | ?????????????????????????????????????????????????? | | ?????????????????????????????????????????????????? | | ?????????????????????????????????????????????????? | | ?????????????????????????????????????????????????? | | ?????????????????????????????????????????????????? | | ?????????????????????????????????????????????????? | | ?????????????????????????????????????????????????? | | ?????????????????????????????????????????????????? | | ?????????????????????????????????????????????????? | | ?????????????????????????????????????????????????? | | ?????????????????????????????????????????????????? | | ?????????????????????????????????????????????????? | | ?????????????????????????????????????????????????? | +----------------------------------------------------+ Best States ------------- Heat Dissipation 25 Energy Generation 15 Energy Capacity 250 Matter Stores 300 Matter Capacity 300 Sight Range 16 Terrain Scan Density 10 Evasion (%) 55 Item Schematics ----------------- None Robot Schematics ------------------ None Fabricated ------------ Nothing Alien Tech Used ----------------- None Achievements -------------- None Challenges ------------ None Game ------ Seed TrackerLightpackDetonator Manual? 0 Play Time 00:11:05 Cumulative 126.9 hours Start 2025.03.05 @ 15:43:17 End 2025.03.05 @ 15:50:54 Sessions 1 Manual Loads 0 Difficulty Rogue Special Mode None Game No. 95 Rogue 95 Adventurer 0 Explorer 0 Win Type - Total 0 Types 0/0/0/0/0/0/0/0/0 Lore% 39 Gallery% 49 Achievement% 39 Wizard Run 0 Options --------- Layout 2 ASCII 1 Keyboard 1 Movement Arrows Keybinds 0 Fullscreen 2 Font 20/SmallcapsGlow Map View 64x51 Zoom Use 0% Tactical HUD 1 Map Filters NONE Filters NONE Steam 1 RUN: abd913d1-f6a4-4439-ad88-33791105ebfc